[Event "*** SCC Grand Prix: Titled Tuesday Blitz"]
[Site "Chess.com"]
[Date "2020.09.08"]
[Round "7"]
[White "GMJustin"]
[Black "Bastiandash"]
[Result "1-0"]
[WhiteElo "2226"]
[BlackElo "2378"]
[TimeControl "180+1"]
[EndTime "11:19:08 PDT"]
[Termination "GMJustin won by checkmate"]

1. e4 {[%clk 0:03:00.3]} 1... c5 {[%clk 0:02:59.7]} 2. Nf3 {[%clk 0:02:49.1]}
2... e6 {[%clk 0:02:58.6]} 3. d4 {[%clk 0:02:46.6]} 3... cxd4 {[%clk 0:02:59.2]}
4. Nxd4 {[%clk 0:02:46.7]} 4... a6 {[%clk 0:03:00.1]} 5. c4 {[%clk 0:02:46.2]}
5... Nf6 {[%clk 0:02:59.9]} 6. Nc3 {[%clk 0:02:46.1]} 6... Bb4 {[%clk 0:02:58]}
7. Qf3 {[%clk 0:02:44.6]} 7... Qc7 {[%clk 0:02:51.6]} 8. Nc2 {[%clk 0:02:31.5]}
8... Be7 {[%clk 0:02:27.6]} 9. Qg3 {[%clk 0:02:21.1]} 9... Qxg3 {[%clk
0:02:26.7]} 10. hxg3 {[%clk 0:02:21.2]} 10... Nc6 {[%clk 0:02:24.5]} 11. Be2
{[%clk 0:02:19.4]} 11... d6 {[%clk 0:02:24.5]} 12. g4 {[%clk 0:02:19.2]} 12...
b6 {[%clk 0:02:22.1]} 13. g5 {[%clk 0:02:18.5]} 13... Nd7 {[%clk 0:02:22.5]} 14.
Be3 {[%clk 0:02:16.4]} 14... Bb7 {[%clk 0:02:22.1]} 15. O-O-O {[%clk 0:02:15.3]}
15... O-O-O {[%clk 0:02:21]} 16. f3 {[%clk 0:02:09]} 16... Nc5 {[%clk 0:01:59]}
17. Rh3 {[%clk 0:02:00.7]} 17... f6 {[%clk 0:01:39.1]} 18. Rdh1 {[%clk
0:01:53.5]} 18... fxg5 {[%clk 0:01:35.2]} 19. Rxh7 {[%clk 0:01:53.2]} 19... Rxh7
{[%clk 0:01:34.9]} 20. Rxh7 {[%clk 0:01:51.8]} 20... Bf6 {[%clk 0:01:35.8]} 21.
Kd2 {[%clk 0:01:36.3]} 21... Ne5 {[%clk 0:01:34.3]} 22. b4 {[%clk 0:01:28.7]}
22... Ncd7 {[%clk 0:01:22.5]} 23. Nd4 {[%clk 0:01:28]} 23... Re8 {[%clk
0:01:19.7]} 24. g3 {[%clk 0:01:24.1]} 24... Kd8 {[%clk 0:01:01.9]} 25. f4 {[%clk
0:01:22.7]} 25... gxf4 {[%clk 0:01:02.8]} 26. gxf4 {[%clk 0:01:22.4]} 26... Ng6
{[%clk 0:01:03.7]} 27. Rh2 {[%clk 0:01:00.3]} 27... Nxf4 {[%clk 0:00:55.7]} 28.
Bxf4 {[%clk 0:00:56.5]} 28... Bxd4 {[%clk 0:00:51.1]} 29. Bxd6 {[%clk
0:00:54.9]} 29... Nf6 {[%clk 0:00:43.8]} 30. e5 {[%clk 0:00:46.4]} 30... Bxc3+
{[%clk 0:00:43.3]} 31. Kxc3 {[%clk 0:00:45.8]} 31... Ne4+ {[%clk 0:00:44.2]} 32.
Kd4 {[%clk 0:00:43.8]} 32... Nxd6 {[%clk 0:00:43.5]} 33. exd6 {[%clk 0:00:43.7]}
33... Kd7 {[%clk 0:00:44.4]} 34. c5 {[%clk 0:00:41.1]} 34... bxc5+ {[%clk
0:00:44.2]} 35. bxc5 {[%clk 0:00:41.1]} 35... e5+ {[%clk 0:00:43.9]} 36. Kc4
{[%clk 0:00:41.1]} 36... Bc6 {[%clk 0:00:39.5]} 37. Bg4+ {[%clk 0:00:40.6]}
37... Kd8 {[%clk 0:00:38.3]} 38. Rh7 {[%clk 0:00:39.4]} 38... Rf8 {[%clk
0:00:25.8]} 39. Rxg7 {[%clk 0:00:37.9]} 39... Rf4+ {[%clk 0:00:25.6]} 40. Kc3
{[%clk 0:00:37.9]} 40... Bd5 {[%clk 0:00:22.5]} 41. Kd2 {[%clk 0:00:22.8]} 41...
Rc4 {[%clk 0:00:15.3]} 42. Bf5 {[%clk 0:00:11.5]} 42... Rxc5 {[%clk 0:00:09.9]}
43. Rh7 {[%clk 0:00:11.7]} 43... Ke8 {[%clk 0:00:04.7]} 44. d7+ {[%clk
0:00:11.7]} 44... Kd8 {[%clk 0:00:01.3]} 45. Rh8+ {[%clk 0:00:11.9]} 45... Ke7
{[%clk 0:00:01.4]} 46. d8=Q+ {[%clk 0:00:11.6]} 46... Kf7 {[%clk 0:00:02.3]} 47.
Qf8# {[%clk 0:00:10.9]} 1-0

[Event "*** SCC Grand Prix: Titled Tuesday Blitz"]
[Site "Chess.com"]
[Date "2020.09.08"]
[Round "7"]
[White "pedromartinez91"]
[Black "bocah_sakit"]
[Result "0-1"]
[WhiteElo "2489"]
[BlackElo "2670"]
[TimeControl "180+1"]
[EndTime "11:19:09 PDT"]
[Termination "bocah_sakit won by checkmate"]

1. Nf3 {[%clk 0:03:00.9]} 1... Nf6 {[%clk 0:02:59.7]} 2. g3 {[%clk 0:03:01.8]}
2... g6 {[%clk 0:03:00.6]} 3. Bg2 {[%clk 0:03:02.7]} 3... Bg7 {[%clk 0:03:01.3]}
4. O-O {[%clk 0:03:03.6]} 4... O-O {[%clk 0:03:02.2]} 5. d4 {[%clk 0:03:04]}
5... d6 {[%clk 0:03:03.1]} 6. c4 {[%clk 0:03:04.7]} 6... Nc6 {[%clk 0:03:03.6]}
7. Nc3 {[%clk 0:03:05.2]} 7... e5 {[%clk 0:03:04]} 8. dxe5 {[%clk 0:03:01.7]}
8... dxe5 {[%clk 0:03:04.9]} 9. Qxd8 {[%clk 0:03:02.1]} 9... Rxd8 {[%clk
0:03:02.3]} 10. Bg5 {[%clk 0:03:01.5]} 10... Be6 {[%clk 0:03:02.6]} 11. Nd2
{[%clk 0:03:01.5]} 11... Re8 {[%clk 0:02:27.6]} 12. Bxf6 {[%clk 0:03:00.4]}
12... Bxf6 {[%clk 0:02:28.5]} 13. Nde4 {[%clk 0:03:01]} 13... Be7 {[%clk
0:02:22.9]} 14. Nd5 {[%clk 0:03:00.4]} 14... Bxd5 {[%clk 0:02:16.6]} 15. cxd5
{[%clk 0:03:01.3]} 15... Nb4 {[%clk 0:02:11.1]} 16. Nc3 {[%clk 0:03:01.4]} 16...
a5 {[%clk 0:01:56.5]} 17. Rac1 {[%clk 0:03:00.9]} 17... Na6 {[%clk 0:01:46]} 18.
Nb5 {[%clk 0:02:59.8]} 18... Bd6 {[%clk 0:01:43]} 19. Rc4 {[%clk 0:03:00.3]}
19... f5 {[%clk 0:01:41.1]} 20. e4 {[%clk 0:02:57.5]} 20... Kf7 {[%clk
0:01:37.6]} 21. Rfc1 {[%clk 0:02:56.4]} 21... Kf6 {[%clk 0:01:36.5]} 22. Kf1
{[%clk 0:02:55.8]} 22... Re7 {[%clk 0:01:28.3]} 23. Ke2 {[%clk 0:02:55.4]} 23...
Rf8 {[%clk 0:01:26.3]} 24. f3 {[%clk 0:02:39.2]} 24... Kg7 {[%clk 0:01:25]} 25.
Ra4 {[%clk 0:02:25.9]} 25... fxe4 {[%clk 0:01:23.7]} 26. Rxe4 {[%clk 0:02:23.2]}
26... Ref7 {[%clk 0:01:17.7]} 27. Rec4 {[%clk 0:02:17.4]} 27... g5 {[%clk
0:01:15.4]} 28. a3 {[%clk 0:02:11.7]} 28... h5 {[%clk 0:01:14.8]} 29. h4 {[%clk
0:02:07.6]} 29... g4 {[%clk 0:01:13.6]} 30. Rf1 {[%clk 0:02:08.1]} 30... e4
{[%clk 0:01:06.1]} 31. fxg4 {[%clk 0:02:00.2]} 31... Bxg3 {[%clk 0:01:03]} 32.
Rxf7+ {[%clk 0:01:51.6]} 32... Rxf7 {[%clk 0:01:03.9]} 33. Bxe4 {[%clk 0:01:52]}
33... hxg4 {[%clk 0:01:00.9]} 34. Bf5 {[%clk 0:01:40]} 34... Rxf5 {[%clk
0:00:40.6]} 35. Rxg4+ {[%clk 0:01:39.6]} 35... Kh6 {[%clk 0:00:38.3]} 36. Rxg3
{[%clk 0:01:39.9]} 36... Rxd5 {[%clk 0:00:38.5]} 37. Nc3 {[%clk 0:01:37.7]}
37... Rd4 {[%clk 0:00:35.2]} 38. Rg5 {[%clk 0:00:56]} 38... b6 {[%clk 0:00:30]}
39. Rg8 {[%clk 0:00:44]} 39... Kh7 {[%clk 0:00:17.8]} 40. Ra8 {[%clk 0:00:40.7]}
40... Nc5 {[%clk 0:00:17.8]} 41. Ra7 {[%clk 0:00:39.9]} 41... Ne6 {[%clk
0:00:12.6]} 42. Nb5 {[%clk 0:00:35.9]} 42... Rc4 {[%clk 0:00:12]} 43. Kd3 {[%clk
0:00:32.4]} 43... Rc5 {[%clk 0:00:11.9]} 44. Nc3 {[%clk 0:00:31.2]} 44... Kh6
{[%clk 0:00:11.8]} 45. Ra8 {[%clk 0:00:28.6]} 45... Rf5 {[%clk 0:00:07.2]} 46.
Ne4 {[%clk 0:00:23.8]} 46... Rf3+ {[%clk 0:00:05.1]} 47. Kc4 {[%clk 0:00:22]}
47... c6 {[%clk 0:00:05.3]} 48. Re8 {[%clk 0:00:17.9]} 48... b5# {[%clk
0:00:05.1]} 0-1

[Event "*** SCC Grand Prix: Titled Tuesday Blitz"]
[Site "Chess.com"]
[Date "2020.09.08"]
[Round "7"]
[White "Oligan22"]
[Black "annamaja"]
[Result "1-0"]
[WhiteElo "2463"]
[BlackElo "2290"]
[TimeControl "180+1"]
[EndTime "11:19:09 PDT"]
[Termination "Oligan22 won on time"]

1. e4 {[%clk 0:03:00.9]} 1... c5 {[%clk 0:02:57.7]} 2. Nf3 {[%clk 0:03:01]} 2...
Nc6 {[%clk 0:02:56.5]} 3. Bb5 {[%clk 0:03:00.4]} 3... g6 {[%clk 0:02:55.5]} 4.
O-O {[%clk 0:02:59.4]} 4... Bg7 {[%clk 0:02:55.5]} 5. c3 {[%clk 0:02:55.5]} 5...
Nf6 {[%clk 0:02:49.5]} 6. Re1 {[%clk 0:02:49.6]} 6... O-O {[%clk 0:02:46.5]} 7.
d3 {[%clk 0:02:28.1]} 7... Qb6 {[%clk 0:02:33.1]} 8. Ba4 {[%clk 0:02:22.9]} 8...
d6 {[%clk 0:02:26.4]} 9. h3 {[%clk 0:02:22.3]} 9... a6 {[%clk 0:02:07.7]} 10.
Nbd2 {[%clk 0:02:22.1]} 10... Qc7 {[%clk 0:02:07.6]} 11. Bc2 {[%clk 0:02:21.7]}
11... b5 {[%clk 0:02:06]} 12. a4 {[%clk 0:02:21.8]} 12... Bb7 {[%clk 0:02:00.8]}
13. Qe2 {[%clk 0:02:19.9]} 13... e5 {[%clk 0:01:42.4]} 14. Nf1 {[%clk
0:02:18.7]} 14... d5 {[%clk 0:01:42.6]} 15. Bg5 {[%clk 0:02:00.6]} 15... d4
{[%clk 0:01:16]} 16. cxd4 {[%clk 0:01:42.2]} 16... cxd4 {[%clk 0:01:10.2]} 17.
Rec1 {[%clk 0:01:39.6]} 17... Qd6 {[%clk 0:01:08.8]} 18. Bb3 {[%clk 0:01:28.3]}
18... Nd7 {[%clk 0:01:08.8]} 19. Bd5 {[%clk 0:01:20.2]} 19... Nb6 {[%clk
0:00:59.8]} 20. Bb3 {[%clk 0:01:12.7]} 20... Na5 {[%clk 0:00:56.5]} 21. Bd1
{[%clk 0:01:11.9]} 21... b4 {[%clk 0:00:46.3]} 22. Qe1 {[%clk 0:01:04.8]} 22...
Rfc8 {[%clk 0:00:37]} 23. Bd2 {[%clk 0:00:57.4]} 23... Bf8 {[%clk 0:00:36.7]}
24. N1h2 {[%clk 0:00:48.7]} 24... Nd7 {[%clk 0:00:33.6]} 25. Ng4 {[%clk
0:00:45.8]} 25... Nc6 {[%clk 0:00:29.4]} 26. a5 {[%clk 0:00:44.1]} 26... h5
{[%clk 0:00:20.3]} 27. Ngh2 {[%clk 0:00:41.5]} 27... Rab8 {[%clk 0:00:18.7]} 28.
Ng5 {[%clk 0:00:41.1]} 28... Ba8 {[%clk 0:00:16.2]} 29. Qf1 {[%clk 0:00:40.5]}
29... Nc5 {[%clk 0:00:16.1]} 30. f4 {[%clk 0:00:39.4]} 30... Rc7 {[%clk
0:00:07.8]} 31. fxe5 {[%clk 0:00:39.3]} 31... Nxe5 {[%clk 0:00:07.3]} 32. Bf4
{[%clk 0:00:33]} 32... Rbb7 {[%clk 0:00:04.2]} 33. Be2 {[%clk 0:00:23.3]} 33...
Bg7 {[%clk 0:00:04.3]} 34. Nhf3 {[%clk 0:00:21.6]} 34... Nxf3+ {[%clk
0:00:03.7]} 35. Qxf3 {[%clk 0:00:20.3]} 35... Be5 {[%clk 0:00:04.1]} 36. Bxe5
{[%clk 0:00:16.5]} 36... Qxe5 {[%clk 0:00:05]} 37. h4 {[%clk 0:00:15.7]} 37...
Re7 {[%clk 0:00:04.8]} 38. Rc4 {[%clk 0:00:15.6]} 38... b3 {[%clk 0:00:03.8]}
39. Rac1 {[%clk 0:00:15.2]} 39... Rbc7 {[%clk 0:00:04.4]} 40. Qf2 {[%clk
0:00:12.2]} 40... Bb7 {[%clk 0:00:02.7]} 41. Nf3 {[%clk 0:00:12.4]} 41... Qd6
{[%clk 0:00:02.6]} 42. Rxd4 {[%clk 0:00:12.3]} 42... Qf4 {[%clk 0:00:02.9]} 43.
Rdc4 {[%clk 0:00:12.1]} 43... Nxe4 {[%clk 0:00:01.9]} 44. dxe4 {[%clk
0:00:10.3]} 1-0

[Event "*** SCC Grand Prix: Titled Tuesday Blitz"]
[Site "Chess.com"]
[Date "2020.09.08"]
[Round "7"]
[White "1stSecond"]
[Black "daro94"]
[Result "0-1"]
[WhiteElo "2794"]
[BlackElo "2968"]
[TimeControl "180+1"]
[EndTime "11:19:10 PDT"]
[Termination "daro94 won on time"]

1. Nf3 {[%clk 0:02:58]} 1... g6 {[%clk 0:02:58.4]} 2. g3 {[%clk 0:02:58.5]} 2...
Bg7 {[%clk 0:02:58.8]} 3. d4 {[%clk 0:02:59]} 3... Nf6 {[%clk 0:02:58.8]} 4. Bg2
{[%clk 0:02:59.4]} 4... O-O {[%clk 0:02:59.4]} 5. O-O {[%clk 0:03:00.1]} 5... d6
{[%clk 0:02:58]} 6. Nc3 {[%clk 0:02:58.6]} 6... Nbd7 {[%clk 0:02:53.6]} 7. e4
{[%clk 0:02:57.5]} 7... e5 {[%clk 0:02:54.1]} 8. h3 {[%clk 0:02:58]} 8... Re8
{[%clk 0:02:48.8]} 9. Re1 {[%clk 0:02:47.4]} 9... c6 {[%clk 0:02:48.8]} 10. a4
{[%clk 0:02:45.6]} 10... a5 {[%clk 0:02:48.3]} 11. b3 {[%clk 0:02:45.8]} 11...
Qc7 {[%clk 0:02:47]} 12. Ba3 {[%clk 0:02:45.4]} 12... Bf8 {[%clk 0:02:43.1]} 13.
Qd2 {[%clk 0:02:41.4]} 13... b6 {[%clk 0:02:43]} 14. d5 {[%clk 0:02:40.5]} 14...
Bb7 {[%clk 0:02:43.1]} 15. dxc6 {[%clk 0:02:34.7]} 15... Bxc6 {[%clk 0:02:44]}
16. Rad1 {[%clk 0:02:32.3]} 16... Nc5 {[%clk 0:02:41.4]} 17. Nh4 {[%clk
0:02:27.3]} 17... Rad8 {[%clk 0:02:38.4]} 18. Qg5 {[%clk 0:02:09.3]} 18... Bg7
{[%clk 0:02:28.3]} 19. Qe3 {[%clk 0:02:09.1]} 19... Qb7 {[%clk 0:02:22.1]} 20.
Rd2 {[%clk 0:01:54.4]} 20... Bf8 {[%clk 0:02:14.2]} 21. Bf3 {[%clk 0:01:40.4]}
21... Ne6 {[%clk 0:02:02.3]} 22. Red1 {[%clk 0:01:32.8]} 22... Nd4 {[%clk
0:02:02.3]} 23. Bg2 {[%clk 0:01:33]} 23... Rc8 {[%clk 0:01:29.4]} 24. Bb2 {[%clk
0:01:13.4]} 24... Rcd8 {[%clk 0:01:24.1]} 25. Re1 {[%clk 0:01:03.4]} 25... Re6
{[%clk 0:01:11.3]} 26. Nd1 {[%clk 0:00:59.2]} 26... Rde8 {[%clk 0:01:01.3]} 27.
f4 {[%clk 0:00:38.3]} 27... Bh6 {[%clk 0:00:45]} 28. Nf2 {[%clk 0:00:38.1]}
28... d5 {[%clk 0:00:40.9]} 29. Bxd4 {[%clk 0:00:28]} 29... exd4 {[%clk
0:00:40.2]} 30. Qxd4 {[%clk 0:00:28.9]} 30... dxe4 {[%clk 0:00:39.7]} 31. Rde2
{[%clk 0:00:26]} 31... Bg7 {[%clk 0:00:22.6]} 32. f5 {[%clk 0:00:24.4]} 32...
Re5 {[%clk 0:00:21.8]} 33. Qc4 {[%clk 0:00:16]} 33... g5 {[%clk 0:00:19.6]} 34.
Nd3 {[%clk 0:00:08.9]} 34... R5e7 {[%clk 0:00:16.4]} 35. Nf3 {[%clk 0:00:06.9]}
35... exf3 {[%clk 0:00:13.9]} 36. Rxe7 {[%clk 0:00:07.8]} 36... Rxe7 {[%clk
0:00:13.7]} 37. Rxe7 {[%clk 0:00:07.8]} 37... Qxe7 {[%clk 0:00:14.4]} 38. Qxc6
{[%clk 0:00:08.3]} 38... fxg2 {[%clk 0:00:14.2]} 39. Qxb6 {[%clk 0:00:04.3]}
39... Qe2 {[%clk 0:00:10.1]} 40. Qf2 {[%clk 0:00:04.6]} 40... Qe4 {[%clk
0:00:07]} 41. g4 {[%clk 0:00:05]} 41... Nd5 {[%clk 0:00:05.6]} 42. Qxg2 {[%clk
0:00:04.2]} 42... Bd4+ {[%clk 0:00:06]} 43. Kh2 {[%clk 0:00:03]} 43... Qe3
{[%clk 0:00:06.6]} 0-1

[Event "*** SCC Grand Prix: Titled Tuesday Blitz"]
[Site "Chess.com"]
[Date "2020.09.08"]
[Round "7"]
[White "DarZay"]
[Black "ChessWarrior3"]
[Result "1-0"]
[WhiteElo "2058"]
[BlackElo "2118"]
[TimeControl "180+1"]
[EndTime "11:19:11 PDT"]
[Termination "DarZay won by resignation"]

1. e3 {[%clk 0:03:00.8]} 1... e5 {[%clk 0:02:56.4]} 2. d4 {[%clk 0:02:57]} 2...
Nc6 {[%clk 0:02:43.2]} 3. d5 {[%clk 0:02:47.7]} 3... Nce7 {[%clk 0:02:40.4]} 4.
e4 {[%clk 0:02:46.3]} 4... d6 {[%clk 0:02:32.2]} 5. c4 {[%clk 0:02:31.1]} 5...
c5 {[%clk 0:02:30.2]} 6. Nc3 {[%clk 0:02:27.5]} 6... g6 {[%clk 0:02:28.7]} 7. g3
{[%clk 0:02:22.4]} 7... Bg7 {[%clk 0:02:28.5]} 8. Bg2 {[%clk 0:02:22.2]} 8... f5
{[%clk 0:02:28]} 9. f4 {[%clk 0:02:20.7]} 9... fxe4 {[%clk 0:02:11.9]} 10. Nxe4
{[%clk 0:02:17.4]} 10... Nf6 {[%clk 0:02:11.7]} 11. Nxf6+ {[%clk 0:02:16.7]}
11... Bxf6 {[%clk 0:02:12.6]} 12. fxe5 {[%clk 0:02:15.3]} 12... Bxe5 {[%clk
0:02:11.8]} 13. Nf3 {[%clk 0:02:14.6]} 13... Bg7 {[%clk 0:02:11.3]} 14. O-O
{[%clk 0:02:14.3]} 14... O-O {[%clk 0:02:11.5]} 15. Bg5 {[%clk 0:02:09.2]} 15...
h6 {[%clk 0:02:11.2]} 16. Bf4 {[%clk 0:02:03.5]} 16... Nf5 {[%clk 0:02:10.5]}
17. Qe2 {[%clk 0:01:56]} 17... Nd4 {[%clk 0:02:08.8]} 18. Nxd4 {[%clk
0:01:55.1]} 18... Bxd4+ {[%clk 0:02:09.7]} 19. Kh1 {[%clk 0:01:54.5]} 19... Kg7
{[%clk 0:02:04.1]} 20. Rae1 {[%clk 0:01:47.5]} 20... h5 {[%clk 0:01:58.3]} 21.
Qe7+ {[%clk 0:01:46.5]} 21... Qxe7 {[%clk 0:01:56.4]} 22. Rxe7+ {[%clk
0:01:46.1]} 22... Rf7 {[%clk 0:01:55.1]} 23. Rxf7+ {[%clk 0:01:42.9]} 23... Kxf7
{[%clk 0:01:56]} 24. Bxd6+ {[%clk 0:01:42.2]} 24... Bf5 {[%clk 0:01:56.5]} 25.
Be4 {[%clk 0:01:38.4]} 25... Kf6 {[%clk 0:01:53.7]} 26. Bxf5 {[%clk 0:01:37.1]}
26... gxf5 {[%clk 0:01:54.6]} 27. b3 {[%clk 0:01:32.6]} 27... Kg5 {[%clk
0:01:53.3]} 28. Bf4+ {[%clk 0:01:29.8]} 28... Kg4 {[%clk 0:01:52.5]} 29. Kg2
{[%clk 0:01:25.9]} 29... h4 {[%clk 0:01:51]} 30. h3+ {[%clk 0:01:20.5]} 30...
Kh5 {[%clk 0:01:51.2]} 31. Bd6 {[%clk 0:01:12]} 31... Kg6 {[%clk 0:01:42.4]} 32.
gxh4 {[%clk 0:01:09.7]} 32... Re8 {[%clk 0:01:39]} 33. Bg3 {[%clk 0:00:40.8]}
33... Re2+ {[%clk 0:01:34.1]} 34. Kf3 {[%clk 0:00:37.7]} 34... Rxa2 {[%clk
0:01:32.8]} 35. d6 {[%clk 0:00:36.5]} 35... Rd2 {[%clk 0:01:28.9]} 36. Bf4
{[%clk 0:00:32]} 36... Rd3+ {[%clk 0:01:26.4]} 37. Ke2 {[%clk 0:00:30.6]} 37...
Rxb3 {[%clk 0:01:11.9]} 38. d7 {[%clk 0:00:18.2]} 38... Rb2+ {[%clk 0:01:06.3]}
39. Kd1 {[%clk 0:00:15.4]} 39... Bf6 {[%clk 0:00:58.4]} 40. Bg5 {[%clk
0:00:15.2]} 40... Rb6 {[%clk 0:00:55.1]} 41. Kc2 {[%clk 0:00:12.1]} 41... Rd6
{[%clk 0:00:45.4]} 42. Rd1 {[%clk 0:00:11.8]} 42... Rxd1 {[%clk 0:00:27.1]} 43.
Kxd1 {[%clk 0:00:11.7]} 43... Bxg5 {[%clk 0:00:26.4]} 44. hxg5 {[%clk
0:00:11.5]} 44... f4 {[%clk 0:00:25.6]} 45. d8=Q {[%clk 0:00:10.9]} 45... f3
{[%clk 0:00:26.1]} 46. Ke1 {[%clk 0:00:11.3]} 46... a5 {[%clk 0:00:25.6]} 47.
Qf6+ {[%clk 0:00:11.7]} 47... Kh7 {[%clk 0:00:25.1]} 48. g6+ {[%clk 0:00:12]}
48... Kh6 {[%clk 0:00:23.2]} 49. g7+ {[%clk 0:00:12.1]} 49... Kh5 {[%clk
0:00:23.5]} 50. h4 {[%clk 0:00:12.3]} 50... f2+ {[%clk 0:00:20.7]} 51. Kxf2
{[%clk 0:00:11.9]} 51... Kg4 {[%clk 0:00:21.4]} 52. Qg5+ {[%clk 0:00:11.9]} 1-0

[Event "*** SCC Grand Prix: Titled Tuesday Blitz"]
[Site "Chess.com"]
[Date "2020.09.08"]
[Round "7"]
[White "aloe_normansen"]
[Black "joshuaguo"]
[Result "1-0"]
[WhiteElo "2356"]
[BlackElo "2213"]
[TimeControl "180+1"]
[EndTime "11:19:12 PDT"]
[Termination "aloe_normansen won on time"]

1. e4 {[%clk 0:03:00.9]} 1... c5 {[%clk 0:02:55.3]} 2. Nf3 {[%clk 0:03:00.9]}
2... d6 {[%clk 0:02:53.1]} 3. d4 {[%clk 0:03:00.9]} 3... cxd4 {[%clk 0:02:54]}
4. Nxd4 {[%clk 0:03:01.7]} 4... Nf6 {[%clk 0:02:54.6]} 5. Nc3 {[%clk 0:03:01.9]}
5... a6 {[%clk 0:02:55.1]} 6. Bg5 {[%clk 0:03:02]} 6... e6 {[%clk 0:02:55.3]} 7.
f4 {[%clk 0:03:01.7]} 7... h6 {[%clk 0:02:55.8]} 8. Bh4 {[%clk 0:03:01.1]} 8...
Qb6 {[%clk 0:02:55.7]} 9. Qd2 {[%clk 0:02:47.9]} 9... Qxb2 {[%clk 0:02:54.8]}
10. Rb1 {[%clk 0:02:47.7]} 10... Qa3 {[%clk 0:02:55.1]} 11. e5 {[%clk
0:02:47.3]} 11... dxe5 {[%clk 0:02:53.8]} 12. fxe5 {[%clk 0:02:48.2]} 12... g5
{[%clk 0:02:54.3]} 13. Bg3 {[%clk 0:02:37.1]} 13... Nh5 {[%clk 0:02:10.9]} 14.
Be2 {[%clk 0:02:24.4]} 14... Nxg3 {[%clk 0:02:00.4]} 15. hxg3 {[%clk 0:02:25.3]}
15... Bg7 {[%clk 0:01:59.6]} 16. O-O {[%clk 0:01:54.1]} 16... O-O {[%clk
0:01:51.8]} 17. Bh5 {[%clk 0:01:39.7]} 17... Nd7 {[%clk 0:01:37.8]} 18. Ne4
{[%clk 0:01:08.6]} 18... Nxe5 {[%clk 0:00:41.4]} 19. Nf6+ {[%clk 0:01:05.1]}
19... Kh8 {[%clk 0:00:40.9]} 20. Rb3 {[%clk 0:01:00.5]} 20... Qe7 {[%clk
0:00:36.1]} 21. Ne4 {[%clk 0:00:52.2]} 21... b5 {[%clk 0:00:26.2]} 22. Qe2
{[%clk 0:00:36.6]} 22... Bb7 {[%clk 0:00:20.8]} 23. Nf3 {[%clk 0:00:35.9]} 23...
Nxf3+ {[%clk 0:00:20]} 24. Rbxf3 {[%clk 0:00:36.8]} 24... f5 {[%clk 0:00:17.2]}
25. Nd2 {[%clk 0:00:35.8]} 25... Bxf3 {[%clk 0:00:16.8]} 26. Nxf3 {[%clk
0:00:36.7]} 26... e5 {[%clk 0:00:15.9]} 27. Kh2 {[%clk 0:00:29.9]} 27... e4
{[%clk 0:00:15.6]} 28. Qe3 {[%clk 0:00:26.1]} 28... Qf6 {[%clk 0:00:12]} 29. Ne1
{[%clk 0:00:24]} 29... Rac8 {[%clk 0:00:11.1]} 30. g4 {[%clk 0:00:22.1]} 30...
Qe5+ {[%clk 0:00:10.2]} 31. g3 {[%clk 0:00:19.3]} 31... f4 {[%clk 0:00:09.4]}
32. Qb6 {[%clk 0:00:15.8]} 32... fxg3+ {[%clk 0:00:06.9]} 33. Kg2 {[%clk
0:00:16.2]} 33... Rxf1 {[%clk 0:00:07]} 34. Kxf1 {[%clk 0:00:15.9]} 34... Qf4+
{[%clk 0:00:06.3]} 35. Kg2 {[%clk 0:00:14.7]} 35... Qf2+ {[%clk 0:00:06.2]} 36.
Qxf2 {[%clk 0:00:14.2]} 36... gxf2 {[%clk 0:00:07.1]} 37. Kxf2 {[%clk
0:00:14.6]} 37... Rc3 {[%clk 0:00:05.9]} 38. Ke2 {[%clk 0:00:14.4]} 38... Kg8
{[%clk 0:00:04.6]} 39. Kd2 {[%clk 0:00:14]} 39... Ra3 {[%clk 0:00:03.8]} 40. Ng2
{[%clk 0:00:12.9]} 40... Rxa2 {[%clk 0:00:03.3]} 41. Ne3 {[%clk 0:00:13.1]}
41... Ra3 {[%clk 0:00:01.8]} 42. Nf5 {[%clk 0:00:12.7]} 42... Bf8 {[%clk
0:00:02.1]} 43. Ke2 {[%clk 0:00:12.3]} 43... Kh7 {[%clk 0:00:01.1]} 44. Be8
{[%clk 0:00:12.1]} 1-0

[Event "*** SCC Grand Prix: Titled Tuesday Blitz"]
[Site "Chess.com"]
[Date "2020.09.08"]
[Round "7"]
[White "poppy73"]
[Black "niki_2003"]
[Result "1-0"]
[WhiteElo "2249"]
[BlackElo "1637"]
[TimeControl "180+1"]
[EndTime "11:19:13 PDT"]
[Termination "poppy73 won on time"]

1. e4 {[%clk 0:03:00.9]} 1... c5 {[%clk 0:02:59.4]} 2. Nf3 {[%clk 0:03:01]} 2...
d6 {[%clk 0:02:59.5]} 3. d4 {[%clk 0:03:01.4]} 3... cxd4 {[%clk 0:02:59.8]} 4.
Nxd4 {[%clk 0:03:02.3]} 4... Nf6 {[%clk 0:03:00.6]} 5. Nc3 {[%clk 0:03:02.7]}
5... g6 {[%clk 0:03:01.2]} 6. Be3 {[%clk 0:03:01.9]} 6... Bg7 {[%clk 0:03:01.7]}
7. f3 {[%clk 0:03:01.7]} 7... O-O {[%clk 0:03:02.1]} 8. Qd2 {[%clk 0:03:02.2]}
8... Nc6 {[%clk 0:03:02.1]} 9. O-O-O {[%clk 0:03:02.6]} 9... d5 {[%clk
0:03:01.7]} 10. Kb1 {[%clk 0:03:02.8]} 10... Nxd4 {[%clk 0:02:47]} 11. e5 {[%clk
0:03:01.2]} 11... Nd7 {[%clk 0:02:34.3]} 12. Bxd4 {[%clk 0:02:54.8]} 12... e6
{[%clk 0:02:34.6]} 13. f4 {[%clk 0:02:52.4]} 13... a6 {[%clk 0:02:25.3]} 14. g4
{[%clk 0:02:50.7]} 14... f6 {[%clk 0:02:23.5]} 15. exf6 {[%clk 0:02:44.9]} 15...
Nxf6 {[%clk 0:02:23.2]} 16. h3 {[%clk 0:02:25.8]} 16... b5 {[%clk 0:02:19.7]}
17. Bg2 {[%clk 0:02:21.7]} 17... Nd7 {[%clk 0:02:00.5]} 18. Bxg7 {[%clk
0:02:18]} 18... Kxg7 {[%clk 0:02:00.2]} 19. Qd4+ {[%clk 0:02:18.2]} 19... Qf6
{[%clk 0:01:58.3]} 20. Rhe1 {[%clk 0:02:05.5]} 20... Nb8 {[%clk 0:01:26.2]} 21.
Qc5 {[%clk 0:01:34.9]} 21... Bd7 {[%clk 0:01:14]} 22. g5 {[%clk 0:01:11.5]}
22... Qf5 {[%clk 0:01:02]} 23. Qd4+ {[%clk 0:01:08.4]} 23... Kg8 {[%clk
0:00:59.1]} 24. Nxd5 {[%clk 0:01:06.8]} 24... Nc6 {[%clk 0:00:41.5]} 25. Nf6+
{[%clk 0:00:58]} 25... Rxf6 {[%clk 0:00:38.5]} 26. Qxf6 {[%clk 0:00:57.9]} 26...
Qxf6 {[%clk 0:00:34.9]} 27. gxf6 {[%clk 0:00:58.8]} 27... Ra7 {[%clk 0:00:30.4]}
28. Rxd7 {[%clk 0:00:54.5]} 28... Rxd7 {[%clk 0:00:29.5]} 29. Bxc6 {[%clk
0:00:55.4]} 29... Rd6 {[%clk 0:00:28.2]} 30. Be8 {[%clk 0:00:47.9]} 30... Kf8
{[%clk 0:00:28.1]} 31. f7 {[%clk 0:00:48.1]} 31... Rd4 {[%clk 0:00:18.4]} 32.
Kc1 {[%clk 0:00:44.6]} 32... Ke7 {[%clk 0:00:14.8]} 33. Rxe6+ {[%clk 0:00:39.9]}
33... Kxe6 {[%clk 0:00:12.7]} 34. f8=Q {[%clk 0:00:39.3]} 34... Re4 {[%clk
0:00:10.9]} 35. Qf7+ {[%clk 0:00:37.2]} 35... Kd6 {[%clk 0:00:10.9]} 36. Qd7+
{[%clk 0:00:37]} 36... Kc5 {[%clk 0:00:09.9]} 37. Qc6+ {[%clk 0:00:37]} 37...
Kd4 {[%clk 0:00:09.4]} 38. c3+ {[%clk 0:00:36.5]} 38... Ke3 {[%clk 0:00:09.3]}
39. Bd7 {[%clk 0:00:20.6]} 39... Kd3 {[%clk 0:00:05.4]} 40. Qd5+ {[%clk
0:00:16.7]} 40... Ke3 {[%clk 0:00:05.2]} 41. Bc6 {[%clk 0:00:15.4]} 41... Rxf4
{[%clk 0:00:02.4]} 42. Qe5+ {[%clk 0:00:15.4]} 1-0